bitfinex-derivatives/quotes_SOLF0:USTF0_20260202
["timestamp","ask_amount","ask_price","bid_price","bid_amount"]
[1770052425348,140.14977289,105.39,105.28,7.13190775]
[1770052425554,140.14977289,105.39,105.29,7.14152096]
[1770052426155,8.5483,105.37,105.3,39.33403824]
[1770052426458,11.43212868,105.37,105.3,39.33403824]
[1770052428060,11.43212868,105.37,105.3,15.69482096]
[1770052428360,8.5483,105.37,105.3,15.69482096]
[1770052428759,8.5483,105.37,105.3,39.33403824]
[1770052429156,8.5483,105.37,105.31,7.2397191]
[1770052429653,8.5483,105.37,105.32,7.2397191]
[1770052430663,8.5483,105.37,105.32,15.7914191]
[1770052434759,132.9215,105.41,105.34,7.26997724]
[1770052434967,132.8984,105.43,105.34,7.26997724]
[1770052435166,132.8984,105.43,105.35,7.27352388]
[1770052435462,8.5454,105.4,105.35,7.27352388]
[1770052438269,8.5461,105.39,105.35,7.27352388]
[1770052438867,8.547,105.38,105.33,7.27661409]
[1770052439164,273.07519079,105.4,105.32,378.62]
[1770052439467,8.5481,105.37,105.32,378.62]
[1770052440062,132.9401,105.39,105.32,378.62]
[1770052440260,132.9667,105.37,105.29,30.90333046]
[1770052440461,132.9918,105.35,105.27,322.78333046]
[1770052440762,140.21239079,105.34,105.26,7.26411318]
[1770052441166,133.0197,105.33,105.26,7.26411318]
[1770052441367,133.0293,105.32,105.24,288.196201]
[1770052441564,133.0293,105.32,105.24,264.55698372]
[1770052441764,8.5521,105.32,105.25,7.26241319]
[1770052441964,260.218,105.36,105.27,7.26241319]
[1770052441965,140.18819079,105.36,105.27,7.26241319]
[1770052442164,132.9787,105.36,105.27,7.26241319]
[1770052442871,132.9909,105.35,105.27,15.81821319]
[1770052443568,140.20039079,105.35,105.27,7.26241319]
[1770052444564,8.552,105.32,105.27,7.26241319]
[1770052444973,140.20039079,105.35,105.27,7.26241319]
[1770052446370,8.551,105.33,105.27,7.26241319]
[1770052447167,7.20949079,105.37,105.28,7.29297746]
[1770052447367,132.9538,105.38,105.29,7.29297746]
[1770052447569,140.15869079,105.39,105.31,7.29297746]
[1770052447771,8.5478,105.37,105.31,7.29297746]
[1770052447971,140.13019079,105.41,105.31,7.29297746]
[1770052448269,132.9019,105.42,105.34,7.29297746]
[1770052448570,8.5453,105.4,105.34,7.29297746]
[1770052449470,8.5462,105.39,105.34,7.29297746]
[1770052450665,8.5453,105.4,105.34,7.29297746]
[1770052451465,8.5466,105.39,105.34,7.29297746]
[1770052452973,0.05989643,105.38,105.34,7.29297746]
[1770052460579,8.60709643,105.38,105.34,7.29297746]
[1770052460783,0.05989643,105.38,105.33,224.6]
[1770052460980,0.05989643,105.38,105.32,7.27807409]
[1770052461673,8.5488,105.36,105.32,7.27807409]
[1770052461879,8.5488,105.36,105.3,7.2843228]
[1770052465785,132.9657,105.37,105.3,7.2843228]
[1770052466885,132.9808,105.36,105.3,7.2843228]
[1770052467890,133.0044,105.34,105.26,385.83329829]
[1770052468104,133.0186,105.33,105.26,385.83329829]
[1770052468992,133.0285,105.32,105.26,385.83329829]
[1770052470387,133.0436,105.31,105.23,7.26641816]
[1770052470592,133.0545,105.3,105.23,7.26641816]
[1770052471993,8.5542,105.29,105.23,7.26641816]
[1770052472799,8.555,105.28,105.23,7.26641816]
[1770052473894,133.0285,105.32,105.24,7.31038756]
[1770052475499,8.5543,105.29,105.24,7.31038756]
[1770052476695,8.5551,105.28,105.24,7.31038756]
[1770052477593,8.5542,105.29,105.24,7.31038756]
[1770052477796,140.20303284,105.36,105.25,7.32726561]
[1770052478302,132.9833,105.36,105.27,7.32726561]
[1770052478496,378.8334,105.37,105.27,7.32726561]
[1770052478890,8.5502,105.34,105.27,7.32726561]
[1770052479592,8.5502,105.34,105.28,7.3351958]
[1770052480400,8.5491,105.36,105.29,7.3351958]
[1770052481299,8.5496,105.35,105.29,7.3351958]
[1770052482498,8.5505,105.34,105.29,7.3351958]
[1770052482703,132.9674,105.37,105.29,7.3351958]
[1770052483398,8.5494,105.35,105.29,7.3351958]
[1770052483802,132.9784,105.36,105.29,7.3351958]
[1770052484306,8.5502,105.34,105.29,7.3351958]
[1770052485302,140.17743284,105.38,105.29,7.3351958]
[1770052485607,132.9528,105.38,105.29,7.3351958]
[1770052485807,132.9648,105.37,105.29,7.3351958]
[1770052486206,141.5132,105.37,105.29,7.3351958]
[1770052486706,8.5489,105.36,105.29,7.3351958]
[1770052486906,132.9648,105.37,105.29,7.3351958]
[1770052487502,8.5495,105.35,105.29,7.3351958]
[1770052490607,8.5502,105.34,105.29,7.3351958]
[1770052492307,8.551,105.33,105.27,7.24896398]
[1770052492905,8.5502,105.34,105.28,7.24896398]
[1770052494410,8.5502,105.34,105.28,10.1336698]
[1770052496003,8.5511,105.33,105.28,7.24896398]
[1770052496409,8.5511,105.33,105.28,10.1336698]
[1770052498308,2.88470582,105.33,105.27,378.68]
[1770052498514,2.88470582,105.33,105.26,7.2366846]
[1770052498706,2.88470582,105.33,105.26,10.12139042]
[1770052498910,2.88470582,105.33,105.27,7.2366846]
[1770052500417,8.5517,105.32,105.27,7.2366846]
[1770052501617,8.5533,105.31,105.25,385.90408758]
[1770052501815,11.43800582,105.31,105.25,385.90408758]
[1770052502517,8.5515,105.33,105.26,7.22408758]
[1770052502716,8.5515,105.33,105.27,7.22408758]
[1770052503308,8.55,105.35,105.27,7.22408758]
[1770052504113,132.9901,105.35,105.27,7.22408758]
[1770052504515,132.9789,105.36,105.28,7.22470945]
[1770052506321,8.5502,105.34,105.28,7.22470945]
[1770052507719,8.5511,105.33,105.28,7.22470945]
[1770052510820,132.9946,105.35,105.28,7.22470945]
[1770052511021,132.9946,105.35,105.27,378.72]
[1770052511213,132.9946,105.35,105.27,385.93814723]
[1770052511521,8.551,105.33,105.28,7.21814723]
[1770052511824,132.9789,105.36,105.28,7.21814723]
[1770052512123,8.5508,105.34,105.29,7.21814723]
[1770052514217,8.5508,105.34,105.28,8.5547]
[1770052514420,8.551,105.33,105.27,394.48207806]
[1770052514620,140.17531944,105.38,105.28,7.20627806]
[1770052514826,132.9589,105.38,105.29,7.20627806]
[1770052515021,8.5494,105.35,105.3,7.20627806]
[1770052515324,132.9697,105.37,105.28,363.96589834]
[1770052515520,132.9797,105.36,105.28,363.96589834]
[1770052515824,132.991,105.35,105.26,385.96589834]
[1770052516027,132.991,105.35,105.27,7.26589834]
[1770052516221,395.7934,105.38,105.27,7.26589834]
[1770052516222,385.91531944,105.38,105.28,7.26589834]
[1770052516423,378.6989,105.38,105.29,7.26589834]
[1770052516725,132.9427,105.39,105.31,7.26589834]
[1770052517522,8.5469,105.38,105.32,7.22585205]
[1770052518120,8.5469,105.38,105.33,7.22585205]
[1770052518527,132.9409,105.39,105.31,7.22585205]
[1770052518728,132.9523,105.38,105.31,7.22585205]
[1770052518919,132.9775,105.36,105.29,7.22585205]
[1770052519627,132.9697,105.37,105.29,7.22585205]
[1770052521222,8.5501,105.34,105.29,7.22585205]
[1770052521427,132.9697,105.37,105.29,7.22585205]
[1770052522120,8.5494,105.35,105.29,7.22585205]
[1770052522721,8.5501,105.34,105.29,7.22585205]
[1770052522926,132.9919,105.35,105.27,7.21937181]
[1770052523320,8.5513,105.33,105.27,7.21937181]
[1770052524530,8.5502,105.34,105.28,10.10129974]
[1770052524924,8.551,105.33,105.28,7.21637458]
[1770052526229,2.88492516,105.36,105.3,7.20226956]
[1770052526426,135.85462516,105.37,105.3,7.20226956]
[1770052526630,135.85462516,105.37,105.3,10.08719472]
[1770052526830,8.5494,105.35,105.3,10.08719472]
[1770052528430,8.5494,105.35,105.3,7.20226956]
[1770052528926,8.5481,105.37,105.33,7.20169099]
[1770052529131,135.81932516,105.4,105.33,10.08661615]
[1770052529328,8.5453,105.4,105.34,10.08689305]
[1770052529523,135.78192516,105.43,105.35,2.88492516]
[1770052529729,135.78192516,105.43,105.33,23.63921728]
[1770052529730,135.78192516,105.43,105.36,10.08689305]
[1770052530328,8.5445,105.41,105.36,7.20196789]
[1770052530527,132.9046,105.42,105.34,7.20196789]
[1770052530833,8.546,105.4,105.34,7.20196789]
[1770052531132,132.9046,105.42,105.34,7.20196789]
[1770052532235,132.9321,105.4,105.32,385.90200737]
[1770052532827,8.5471,105.38,105.32,385.90200737]
[1770052533031,132.9046,105.42,105.33,7.22200737]
[1770052533438,132.9297,105.4,105.31,378.62]
[1770052533632,132.9297,105.4,105.32,7.22234847]
[1770052533827,132.9046,105.42,105.32,7.22234847]
[1770052534138,132.9163,105.41,105.32,7.22234847]
[1770052534534,8.5469,105.38,105.32,7.22234847]
[1770052534738,265.8617,105.4,105.31,378.62]
[1770052534739,132.9465,105.39,105.31,378.62]
[1770052535438,132.9465,105.39,105.31,7.21867549]
[1770052536137,132.9044,105.42,105.32,7.21867549]
[1770052536438,0.05985738,105.36,105.32,7.21867549]
[1770052539640,0.05985738,105.36,105.29,172.46147021]
[1770052539641,0.05985738,105.36,105.3,7.23669944]
[1770052540343,8.5494,105.35,105.28,7.23669944]
[1770052542344,8.5494,105.35,105.28,15.79159944]
[1770052542539,140.17235293,105.37,105.29,7.23643041]
[1770052542540,8.5485,105.37,105.29,7.23643041]
[1770052542837,132.9524,105.38,105.29,7.23643041]
[1770052543041,8.5494,105.35,105.29,7.23643041]
[1770052544544,8.5493,105.35,105.29,7.23643041]
[1770052545347,132.9524,105.38,105.3,7.30985415]
[1770052545741,8.5477,105.37,105.3,15.86305415]
[1770052545943,8.5477,105.37,105.31,7.30985415]
[1770052547745,8.5477,105.37,105.32,7.31081075]
[1770052547945,132.9278,105.4,105.32,7.31081075]
[1770052548646,8.5478,105.37,105.32,7.31081075]
[1770052549349,132.9652,105.37,105.28,394.49684604]
[1770052549540,133.0064,105.34,105.25,7.32254604]
[1770052549848,140.19865293,105.35,105.25,7.32254604]
[1770052550243,133.0032,105.34,105.25,7.32254604]
[1770052550543,140.24895293,105.31,105.22,7.32254328]
[1770052550745,8.5543,105.29,105.22,15.88234328]
[1770052551449,8.5551,105.28,105.2,7.32824033]
[1770052552251,8.5551,105.28,105.21,8.5604]
[1770052552447,8.5542,105.29,105.22,7.32824033]
[1770052553353,8.5542,105.29,105.22,15.88774033]
[1770052553542,246.36,105.32,105.23,7.3210771]
[1770052553848,140.23625293,105.32,105.23,7.3210771]
[1770052555451,8.5542,105.29,105.23,7.3210771]
[1770052556044,133.0303,105.32,105.23,7.3210771]
[1770052556249,8.5533,105.31,105.24,7.31471471]
[1770052556453,396.4375,105.35,105.25,7.31471471]
[1770052556454,246.34,105.35,105.25,7.31471471]
[1770052557354,8.5509,105.34,105.27,7.30930843]
[1770052557955,8.5492,105.36,105.28,7.30930843]
[1770052558357,132.9725,105.37,105.28,7.30930843]
[1770052558653,132.978,105.36,105.28,7.30930843]
[1770052560357,8.551,105.33,105.26,15.8030908]
[1770052560657,133.0045,105.34,105.26,7.2464908]
[1770052562061,8.5519,105.32,105.26,7.2464908]
[1770052562259,132.9914,105.35,105.26,7.2464908]
[1770052562464,386.72395293,105.36,105.26,7.2464908]
[1770052562660,140.18395293,105.36,105.27,15.8093238]
[1770052562856,132.9913,105.35,105.25,385.9936238]
[1770052563062,132.9913,105.35,105.26,7.2536238]
[1770052563262,8.5518,105.32,105.26,7.2536238]
[1770052567564,8.551,105.33,105.26,7.2536238]
[1770052567960,8.5519,105.32,105.26,7.2536238]
[1770052568165,133.0335,105.32,105.24,7.22152129]
[1770052568465,133.042,105.31,105.24,7.22152129]
[1770052569368,8.5543,105.29,105.24,7.22152129]
[1770052569767,140.23945293,105.32,105.24,7.22152129]
[1770052569768,7.20595293,105.32,105.24,7.22152129]
[1770052569962,379.7975,105.33,105.24,7.22152129]
[1770052570161,140.19105293,105.36,105.25,7.25758912]
[1770052570567,379.8544,105.37,105.27,7.25758912]
[1770052570767,8.5502,105.34,105.27,7.25758912]
[1770052571267,8.5487,105.36,105.3,15.84816635]
[1770052571966,8.5487,105.36,105.27,7.29486635]
[1770052571967,132.9779,105.36,105.27,7.29486635]
[1770052572159,132.9907,105.35,105.27,7.29486635]
[1770052572762,8.5516,105.33,105.27,7.29486635]
[1770052572963,133.0157,105.33,105.25,7.29486635]
[1770052573160,140.25035293,105.31,105.23,7.31896188]
[1770052573365,8.5545,105.29,105.23,7.31896188]
[1770052574570,8.5552,105.28,105.23,7.31896188]
[1770052574769,140.25035293,105.31,105.23,7.31896188]
[1770052575865,8.555,105.28,105.23,7.31896188]
[1770052576170,133.0837,105.28,105.2,7.34764875]
[1770052576667,133.0444,105.31,105.21,7.34764875]
[1770052576968,247.16,105.32,105.22,7.34764875]
[1770052577867,133.0418,105.31,105.22,7.34764875]
[1770052578270,133.0537,105.3,105.22,7.34764875]
[1770052578473,8.5542,105.29,105.22,7.34764875]
[1770052579567,133.0661,105.29,105.2,394.69260845]
[1770052579772,133.0661,105.29,105.21,7.35110845]
[1770052579974,133.0537,105.3,105.21,7.35110845]
[1770052580264,140.24775293,105.31,105.21,7.35110845]
[1770052580469,8.555,105.29,105.22,7.35096075]
[1770052582267,8.5555,105.28,105.22,7.35096075]
[1770052582967,8.5542,105.29,105.22,7.35096075]
[1770052583175,8.5542,105.29,105.22,15.91046075]
[1770052583573,8.5551,105.28,105.22,7.35096075]
[1770052584171,8.5551,105.28,105.19,535.64811728]
[1770052584172,133.0664,105.29,105.19,387.3815]
[1770052584474,133.0915,105.27,105.19,7.32720499]
[1770052584675,133.0915,105.27,105.17,7.32720499]
[1770052584676,133.1071,105.26,105.17,7.32720499]
[1770052584872,8.5583,105.24,105.17,7.32720499]
[1770052585375,8.5583,105.24,105.18,7.34861883]
[1770052586265,140.29745293,105.27,105.18,15.91171883]
[1770052586469,7.20595293,105.27,105.18,15.91171883]
[1770052586674,7.20595293,105.27,105.19,7.34861883]
[1770052587473,140.29845293,105.27,105.19,7.34861883]
[1770052588677,133.1046,105.26,105.17,15.91508698]
[1770052589476,133.1046,105.26,105.18,7.36877278]
[1770052590481,8.5584,105.24,105.18,7.36877278]
[1770052593771,133.0791,105.28,105.18,7.36877278]
[1770052593972,133.0791,105.28,105.2,7.36603096]
[1770052595281,8.5567,105.26,105.2,7.36603096]
[1770052596877,8.5578,105.25,105.19,8.5616]
[1770052597074,8.5578,105.25,105.18,15.92896784]
[1770052597277,140.29815293,105.27,105.18,15.92896784]
[1770052597783,8.5586,105.24,105.18,15.92896784]
[1770052600377,8.5586,105.24,105.18,7.36596784]
[1770052601382,8.5576,105.25,105.19,7.36204998]
[1770052601882,133.0791,105.28,105.19,7.36204998]
[1770052602183,133.0504,105.31,105.21,7.36204998]
[1770052602574,8.5541,105.3,105.23,7.36204998]
[1770052602781,133.0504,105.31,105.23,7.36204998]
[1770052602983,133.0696,105.29,105.21,7.36204998]
[1770052603979,8.5568,105.26,105.21,7.36204998]
[1770052604179,133.0696,105.29,105.17,7.34950637]
[1770052604180,133.0933,105.27,105.17,7.34950637]
[1770052605282,133.0933,105.27,105.18,8.563]
[1770052605283,8.5582,105.25,105.18,8.563]
[1770052605585,8.5582,105.25,105.19,7.37093843]
[1770052610793,133.0933,105.27,105.19,7.37093843]
[1770052610794,140.33132062,105.26,105.19,7.37093843]
[1770052611396,133.132,105.24,105.15,7.3314712]
[1770052611688,133.1426,105.23,105.15,7.3314712]
[1770052612492,8.5614,105.21,105.15,7.3314712]
[1770052612992,8.5615,105.2,105.15,7.3314712]
[1770052613592,133.1426,105.23,105.15,7.3314712]
[1770052614393,8.5608,105.21,105.15,7.3314712]
[1770052614892,8.5591,105.23,105.16,15.89370905]
[1770052615887,8.5601,105.22,105.16,15.89370905]
[1770052616287,380.3398,105.25,105.17,15.87843204]
[1770052616494,7.22642062,105.26,105.18,7.31453204]
[1770052616795,8.559,105.24,105.18,7.31453204]
[1770052617694,8.559,105.24,105.18,15.87733204]
[1770052617897,247.18,105.27,105.19,7.31426568]
[1770052618195,140.31082062,105.28,105.19,7.31426568]
[1770052619302,8.5567,105.26,105.2,7.31659219]
[1770052619600,133.0917,105.27,105.18,30.95580947]
[1770052619800,140.33642062,105.26,105.18,7.31659219]
[1770052619992,8.559,105.24,105.18,7.31659219]
[1770052620201,133.1184,105.25,105.16,39.51990947]
[1770052620398,140.35582062,105.24,105.16,7.31659219]
[1770052620606,133.1546,105.22,105.14,7.31659219]
[1770052620806,140.38102062,105.22,105.14,7.31659219]
[1770052621007,133.1669,105.21,105.14,7.31659219]
[1770052621907,8.5614,105.21,105.14,7.31659219]
[1770052622207,140.38102062,105.22,105.14,7.31659219]
[1770052622401,8.5618,105.2,105.14,7.31659219]
[1770052624409,8.5626,105.19,105.14,7.31659219]
[1770052624803,140.38102062,105.22,105.14,7.31659219]
[1770052627307,8.5625,105.19,105.14,7.31659219]
[1770052627508,7.22642062,105.22,105.15,7.32521679]
[1770052627706,7.22642062,105.24,105.15,7.32521679]
[1770052629411,8.5599,105.22,105.16,15.88785038]
[1770052629914,8.5599,105.22,105.17,7.32315038]
[1770052630504,8.5592,105.23,105.17,7.32315038]
[1770052630708,8.5592,105.23,105.17,15.88675038]
[1770052630909,8.5592,105.23,105.18,7.32315038]
[1770052632014,8.56,105.22,105.15,7.32483439]
[1770052632310,140.35572062,105.24,105.15,7.32483439]
[1770052632901,388.57572062,105.24,105.15,7.32483439]
[1770052633310,8.5608,105.21,105.15,15.89023439]
[1770052634615,8.56,105.22,105.16,7.3089522]
[1770052636010,381.3372,105.25,105.16,7.3089522]
[1770052636011,8.5597,105.23,105.16,7.3089522]
[1770052636207,248.22,105.25,105.16,7.3089522]
[1770052636407,140.29732062,105.29,105.18,7.28079047]
[1770052636812,8.5565,105.27,105.2,8.5614]
[1770052637014,8.5565,105.27,105.2,15.84219047]
[1770052639818,133.0933,105.27,105.18,7.28327992]
[1770052640022,140.31972062,105.27,105.18,7.28327992]
[1770052641319,8.5574,105.25,105.19,15.84502023]
[1770052641519,7.22642062,105.27,105.19,7.28292023]
[1770052642022,8.5573,105.26,105.2,8.5615]
[1770052642425,7.22642062,105.27,105.19,7.28292023]
[1770052642922,8.5575,105.25,105.19,15.84522023]
[1770052645825,8.5568,105.26,105.21,7.25913493]
[1770052648628,140.31872062,105.27,105.18,7.25943909]
[1770052648828,133.0807,105.28,105.18,7.25943909]
[1770052649330,133.0807,105.28,105.19,7.24833996]
[1770052650029,8.5569,105.26,105.2,7.24833996]
[1770052652030,8.5578,105.25,105.2,7.24833996]
[1770052653028,133.0807,105.28,105.2,7.24833996]
[1770052653029,8.5568,105.26,105.2,7.24833996]
[1770052654327,11.44620918,105.26,105.2,7.24833996]
[1770052659937,8.5568,105.26,105.21,7.24707047]
[1770052660141,2.88940918,105.3,105.24,7.24707047]
[1770052660338,2.88940918,105.31,105.24,7.24707047]
[1770052660536,2.88710372,105.32,105.26,7.24707047]
[1770052660740,2.88710372,105.34,105.27,7.24707047]
[1770052661040,2.88710372,105.35,105.28,7.24707047]
[1770052661231,2.88710372,105.35,105.29,7.24437866]
[1770052662443,132.971,105.37,105.29,7.24437866]
[1770052663344,8.5501,105.34,105.29,7.24437866]
[1770052664538,140.16923348,105.38,105.29,7.24437866]
[1770052666343,8.5483,105.37,105.3,7.25960908]
[1770052666640,140.16923348,105.38,105.3,7.25960908]
[1770052666840,132.98,105.36,105.28,7.25960908]
[1770052668434,8.5503,105.34,105.28,7.25960908]
[1770052671543,132.9649,105.37,105.29,7.2638515]
[1770052672444,8.5503,105.34,105.29,7.2638515]
[1770052673151,133.0026,105.34,105.27,7.2638515]
[1770052673447,17.0932,105.39,105.27,7.2638515]
[1770052673448,140.16453348,105.38,105.27,7.2638515]
[1770052674249,8.5492,105.36,105.29,7.26040016]
[1770052674441,132.9674,105.37,105.29,7.26040016]
[1770052675440,8.5496,105.35,105.29,7.26040016]
[1770052676047,140.16453348,105.38,105.3,7.21120177]
[1770052676744,8.5486,105.36,105.3,15.76450177]
[1770052678250,8.5486,105.36,105.3,7.21120177]
[1770052678452,8.5496,105.35,105.3,7.21120177]
[1770052679152,8.5485,105.36,105.3,7.21120177]
[1770052679952,0.05982824,105.34,105.3,7.21120177]
[1770052681553,8.5484,105.37,105.3,7.21120177]
[1770052682149,8.5485,105.36,105.31,7.16306731]
[1770052682349,132.9483,105.39,105.31,7.16306731]
[1770052683149,8.5478,105.37,105.31,7.16306731]
[1770052683356,8.5478,105.37,105.34,0.06000825]
[1770052683951,8.5487,105.36,105.34,0.06000825]
[1770052684654,11.43223215,105.36,105.34,0.06000825]
[1770052684955,11.43223215,105.36,105.31,7.180998]
[1770052686457,11.43133215,105.37,105.31,7.180998]
[1770052687151,0.05990384,105.35,105.31,7.180998]
[1770052687854,2.88353215,105.32,105.27,253.41]
[1770052688053,133.0074,105.34,105.24,7.16997902]
[1770052688054,2.88353215,105.3,105.24,7.16997902]
[1770052688256,2.88353215,105.32,105.24,7.16997902]
[1770052688452,132.983,105.36,105.28,7.16997902]
[1770052688653,2.88353215,105.35,105.28,7.16997902]
[1770052688853,2.88353215,105.35,105.29,7.16997902]
[1770052689153,11.43293215,105.35,105.29,7.16997902]
[1770052689749,11.43373215,105.34,105.27,15.67160088]
[1770052690058,2.88353215,105.31,105.27,7.11580088]
[1770052690257,2.88353215,105.3,105.25,7.11580088]
[1770052690446,2.88353215,105.29,105.25,7.11580088]
[1770052690646,2.88353215,105.28,105.23,7.11580088]
[1770052691953,11.43773215,105.29,105.23,7.11580088]
[1770052692154,2.88353215,105.3,105.24,7.15022632]
[1770052692355,8.5533,105.31,105.24,7.15022632]
[1770052692659,8.5516,105.33,105.27,7.15022632]
[1770052693654,132.9921,105.35,105.27,7.15022632]
[1770052693655,8.5518,105.32,105.27,7.15022632]
[1770052694660,8.5527,105.31,105.25,7.23285285]
[1770052697761,132.9921,105.35,105.27,7.29075905]
[1770052697962,132.9861,105.36,105.27,7.29075905]
[1770052698358,132.9901,105.35,105.27,7.29075905]
[1770052699561,8.551,105.33,105.27,7.29075905]
[1770052702160,8.5555,105.28,105.24,7.31274754]
[1770052702764,8.5533,105.31,105.24,7.31274754]
[1770052703262,8.5542,105.29,105.24,7.31274754]
[1770052703563,133.0543,105.3,105.22,7.28014317]
[1770052703761,8.5557,105.28,105.22,7.28014317]
[1770052704157,133.0543,105.3,105.22,7.28014317]
[1770052704158,140.26374956,105.31,105.22,7.28014317]
[1770052705259,8.5557,105.28,105.22,15.83924317]
[1770052705558,133.0552,105.3,105.22,15.83924317]
[1770052706063,8.555,105.29,105.23,7.26440652]
[1770052706462,133.0204,105.33,105.24,7.26440652]
[1770052706662,8.5533,105.31,105.24,7.26440652]
[1770052707063,133.0408,105.31,105.22,7.26440652]
[1770052707260,133.0547,105.3,105.22,7.26440652]
[1770052707565,133.0658,105.29,105.22,7.26440652]
[1770052707768,8.5559,105.27,105.22,7.26440652]
[1770052709062,133.0658,105.29,105.19,250.71013306]
[1770052709063,133.0786,105.28,105.19,250.71013306]
[1770052709366,133.0658,105.29,105.2,7.27013306]
[1770052709367,140.28424956,105.29,105.2,7.27013306]
[1770052709958,8.5559,105.27,105.21,7.27013306]
[1770052712268,8.5567,105.26,105.21,7.27013306]
[1770052712968,8.5559,105.27,105.21,7.27013306]
[1770052713470,133.0547,105.3,105.22,7.30573625]
[1770052714268,8.5551,105.28,105.22,15.86523625]
[1770052714472,8.5551,105.28,105.22,18.75335256]
[1770052715375,8.5551,105.28,105.23,7.3081734]
[1770052716577,8.556,105.27,105.21,18.75698971]
[1770052716870,2.88811631,105.32,105.26,7.3081734]
[1770052718070,8.5535,105.3,105.26,7.3081734]
[1770052718375,8.5535,105.3,105.24,15.87535637]
[1770052718571,11.44161631,105.3,105.24,15.87535637]
[1770052719678,137.34564316,105.35,105.27,3.73840842]
[1770052719976,1.46062685,105.34,105.28,3.73840842]
[1770052720372,1.46062685,105.34,105.29,2.88811631]
[1770052721173,1.46062685,105.34,105.28,6.62652473]
[1770052721369,10.01072685,105.34,105.28,15.18152473]
[1770052722379,10.01072685,105.34,105.28,15.17819343]
[1770052724980,10.01072685,105.34,105.28,12.29340842]
[1770052725774,1.46062685,105.34,105.28,3.73840842]
[1770052725981,2.88478501,105.31,105.26,3.73840842]
[1770052726371,1.17688923,105.32,105.26,3.73840842]
[1770052727275,1.22331362,105.31,105.24,382.63840842]
[1770052728074,0.05989559,105.29,105.24,382.63840842]
[1770052728271,8.61409559,105.29,105.24,382.63840842]
[1770052729282,8.61409559,105.29,105.24,3.73840842]
[1770052731883,8.61409559,105.29,105.22,3.55155914]
[1770052731884,1.21527973,105.28,105.22,3.55155914]
[1770052732380,1.21527973,105.27,105.22,3.55155914]
[1770052732583,1.21527973,105.25,105.19,3.55155914]
[1770052732885,1.21527973,105.22,105.16,3.55155914]
[1770052733085,133.1051,105.26,105.16,3.55155914]
[1770052733086,141.56975799,105.26,105.16,3.55155914]
[1770052733688,1.24805713,105.25,105.16,3.55155914]
[1770052734389,141.54905799,105.28,105.18,3.55155914]
[1770052735084,1.24805713,105.27,105.18,3.55155914]
[1770052735277,8.5572,105.26,105.18,12.11465914]
[1770052735481,8.5572,105.26,105.19,3.55155914]
[1770052735681,134.3856184,105.25,105.16,3.55155914]
[1770052735878,134.3856184,105.25,105.17,3.55155914]
[1770052737389,8.5591,105.23,105.17,3.55155914]
[1770052738186,9.82493487,105.23,105.17,3.55155914]
[1770052738989,8.5591,105.23,105.17,3.55155914]
[1770052740390,9.82373487,105.25,105.18,3.55155914]
[1770052742691,8.5579,105.25,105.19,3.55155914]
[1770052742892,710.1929,105.31,105.2,3.55155914]
[1770052742893,141.60376925,105.3,105.2,3.55155914]
[1770052743092,1.32906839,105.28,105.2,3.55155914]
[1770052743293,1.3202568,105.27,105.2,3.55155914]
[1770052743687,134.4127568,105.27,105.2,3.55155914]
[1770052743888,1.3202568,105.26,105.19,378.98]
[1770052744197,8.5583,105.24,105.19,382.53155914]
[1770052745794,8.5592,105.23,105.16,3.55155914]
[1770052746000,1.33937809,105.22,105.15,8.5655]
[1770052746201,1.33937809,105.22,105.15,12.11705914]
[1770052746991,8.5615,105.2,105.15,3.55155914]
[1770052747401,1.33937809,105.22,105.15,3.55155914]
[1770052747597,133.1429,105.23,105.15,3.55155914]
[1770052747801,134.54544737,105.23,105.15,3.55155914]
[1770052748296,8.5598,105.23,105.16,3.55155914]
[1770052748800,8.5598,105.23,105.17,3.55155914]
[1770052749397,9.95288586,105.22,105.15,391.13705914]
[1770052749702,1.39288586,105.22,105.15,382.57155914]
[1770052749899,134.54958586,105.22,105.15,382.57155914]
[1770052750099,134.54958586,105.22,105.15,3.55155914]
[1770052750499,8.5624,105.19,105.15,3.55155914]
[1770052750698,8.5624,105.19,105.13,3.55155914]
[1770052753498,8.5615,105.2,105.14,3.55155914]
[1770052754501,1.39288586,105.21,105.14,3.55155914]
[1770052754502,8.5623,105.19,105.14,3.55155914]
[1770052756600,9.95428586,105.21,105.14,3.55155914]
[1770052756801,8.5614,105.21,105.15,3.55155914]
[1770052757003,134.57608408,105.23,105.15,3.55155914]
[1770052757308,8.5624,105.19,105.13,3.55155914]